fUST/lending_fUST_20251204
["ID","MTS","AMOUNT","RATE_DAILY","PERIOD"]
[396211573,1764810646533,-1188.63002315,0.00014368,2]
[396211574,1764810646544,-81849.44366722,0.00014368,2]
[396211575,1764810646642,-830.6395,0.00014368,2]
[396211576,1764810667506,-613.73,0.00021,30]
[396211577,1764810667538,-500.0,0.0002245,30]
[396211578,1764810667557,-1661.31,0.00023,30]
[396211579,1764810678344,233.0,0.00032876,120]
[396211580,1764810703922,-160.0,0.00019542,15]
[396211581,1764810703941,-160.0,0.00019599,16]
[396211582,1764810703960,-160.0,0.00019657,17]
[396211583,1764810703978,-160.0,0.00019714,18]
[396211584,1764810703997,-160.0,0.00019771,19]
[396211585,1764810704016,-160.0,0.00019828,20]
[396211586,1764810704038,-160.0,0.00019886,21]
[396211587,1764810704056,-160.0,0.00019943,22]
[396211588,1764810704077,-372242.4145,0.0002,18]
[396211589,1764810704095,-211828.0,0.0002,19]
[396211590,1764810704114,-160.0,0.0002,23]
[396211591,1764810704136,-170.23138174,0.00020411,16]
[396211592,1764810704156,-170.23138174,0.00020979,17]
[396211593,1764810704180,-170.23138174,0.00021548,19]
[396211594,1764810704206,-170.23138174,0.00022116,21]
[396211595,1764810704226,-170.23138174,0.00022684,22]
[396211596,1764810716522,-160.0,0.00019256,10]
[396211597,1764810716541,-160.0,0.00019313,11]
[396211598,1764810716559,-160.0,0.0001937,12]
[396211599,1764810716578,-160.0,0.00019428,13]
[396211600,1764810716597,-160.0,0.00019485,14]
[396211601,1764810716618,-1000.0,0.00019505,10]
[396211602,1764810716642,-193585.49983658,0.0002,14]
[396211603,1764810716660,-70000.0,0.0002,11]
[396211604,1764810716679,-250.0,0.0002,10]
[396211605,1764810716700,-250.0,0.000201,10]
[396211606,1764810716720,-250.0,0.000202,10]
[396211607,1764810716741,-250.0,0.000203,10]
[396211608,1764810716760,-250.0,0.000204,10]
[396211609,1764810716779,-250.0,0.000205,10]
[396211610,1764810716797,-250.0,0.000206,10]
[396211611,1764810716816,-250.0,0.000207,10]
[396211612,1764810716838,-250.0,0.000208,10]
[396211613,1764810716857,-250.0,0.000209,10]
[396211614,1764810716876,-159.99999901,0.00021,10]
[396211615,1764810716897,-250.0,0.00021,10]
[396211616,1764810716916,-250.0,0.000211,10]
[396211617,1764810716938,-1000.0,0.00021456,10]
[396211618,1764810716959,-244.0,0.00021456,10]
[396211619,1764810716985,-564.8780416,0.0002196,10]
[396211620,1764810717004,-170.86485062,0.00022,10]
[396211621,1764810717024,-2377.49,0.000226,14]
[396211622,1764810726049,-2600.0,0.00018082,7]
[396211623,1764810726073,-160.0,0.0001897,5]
[396211624,1764810726097,-160.0,0.00019027,6]
[396211625,1764810726120,-160.0,0.00019084,7]
[396211626,1764810726143,-160.0,0.00019142,8]
[396211627,1764810726167,-2600.0,0.00019178,7]
[396211628,1764810726190,-160.0,0.00019199,9]
[396211629,1764810726219,-1572.488466,0.0001986,5]
[396211630,1764810726245,-1000.0,0.0001988,5]
[396211631,1764810726271,-1000.0,0.000199,5]
[396211632,1764810726295,-1000.0,0.0001992,5]
[396211633,1764810726320,-1000.0,0.0001994,5]
[396211634,1764810726345,-1000.0,0.0001996,5]
[396211635,1764810726375,-1000.0,0.0001998,5]
[396211636,1764810726401,-189.3567028,0.0002,5]
[396211637,1764810726425,-6362.0,0.0002,7]
[396211638,1764810726449,-1000.0,0.0002,5]
[396211639,1764810726473,-2000.0,0.0002,7]
[396211640,1764810726502,-2600.0,0.00020274,7]
[396211641,1764810726531,-5706.24097666,0.00021,5]
[396211642,1764810726556,-1041.3026106,0.00021,7]
[396211643,1764810726579,-2000.0,0.00021,7]
[396211644,1764810726607,-399.08732633,0.0002137,7]
[396211645,1764810726630,-2600.0,0.0002137,7]
[396211646,1764810726654,-318841.28342371,0.000215,7]
[396211647,1764810726677,-399.08732633,0.000215,7]
[396211648,1764810726703,-1494.8425955,0.00021918,7]
[396211649,1764810726735,-399.08732633,0.00022,7]
[396211650,1764810726759,-399.08732633,0.00022,7]
[396211651,1764810726782,-2000.0,0.00022,7]
[396211652,1764810726806,-3820.39,0.000221,7]
[396211653,1764810726830,-3770.91,0.000223,7]
[396211654,1764810726853,-166.66,0.000226,7]
[396211655,1764810726875,-2000.0,0.00023,7]
[396211656,1764810727368,-183.0,0.00023,7]
[396211657,1764810727398,-165.0,0.00023,7]
[396211658,1764810741209,-300.0,0.00013694,2]
[396211659,1764810741229,-195.50886385,0.00013695,2]
[396211660,1764810741250,-500.0,0.00013695,2]
[396211661,1764810741270,-500.0,0.00013695,2]
[396211662,1764810741290,-500.0,0.00013695,2]
[396211663,1764810741310,-447.79133719,0.00013695,2]
[396211664,1764810741330,-500.0,0.00013695,2]
[396211665,1764810741351,-500.0,0.00013695,2]
[396211666,1764810741370,-500.0,0.00013695,2]
[396211667,1764810741390,-500.0,0.00013695,2]
[396211668,1764810741410,-522.56139513,0.00013695,2]
[396211669,1764810741430,-500.0,0.00013695,2]
[396211670,1764810741450,-500.0,0.00013695,2]
[396211671,1764810741470,-500.0,0.00013695,2]
[396211672,1764810741490,-500.0,0.00013695,2]
[396211673,1764810741510,-500.0,0.00013695,2]
[396211674,1764810741531,-500.0,0.00013695,2]
[396211675,1764810741554,-500.0,0.00013695,2]
[396211676,1764810741587,-500.0,0.00013695,2]
[396211677,1764810741611,-500.0,0.00013695,2]
[396211678,1764810741632,-500.0,0.00013695,2]
[396211679,1764810741653,-500.0,0.00013695,2]
[396211680,1764810741673,-500.0,0.00013695,2]
[396211681,1764810741693,-500.0,0.00013695,2]
[396211682,1764810741713,-164.77673212,0.00013695,2]
[396211683,1764810741733,-500.0,0.00013695,2]
[396211684,1764810741755,-500.0,0.00013695,2]
[396211685,1764810741774,-500.0,0.00013695,2]
[396211686,1764810741793,-500.0,0.00013695,2]
[396211687,1764810741813,-500.0,0.00013695,2]
[396211688,1764810741832,-500.0,0.00013695,2]
[396211689,1764810741853,-500.0,0.00013695,2]
[396211690,1764810741873,-500.0,0.00013695,2]
[396211691,1764810741893,-500.0,0.00013695,2]
[396211692,1764810741913,-500.0,0.00013695,2]
[396211693,1764810741933,-500.0,0.00013695,2]
[396211694,1764810741953,-500.0,0.00013695,2]
[396211695,1764810741972,-500.0,0.00013695,2]
[396211696,1764810741992,-500.0,0.00013695,2]
[396211697,1764810742328,-500.0,0.00013695,2]
[396211698,1764810742356,-214.34938711,0.00013695,2]
[396211699,1764810742379,-500.0,0.00013695,2]
[396211700,1764810742409,-500.0,0.00013695,2]
[396211701,1764810742435,-500.0,0.00013695,2]
[396211702,1764810742465,-500.0,0.00013695,2]
[396211703,1764810742489,-573.98626487,0.00013695,2]
[396211704,1764810742519,-151.0,0.00013699,2]
[396211705,1764810742548,-151.0,0.00013699,2]
[396211706,1764810742570,-627.1683,0.00013699,2]
[396211707,1764810742597,-9625.42540406,0.00014225,2]
[396211708,1764810742621,-164.49349137,0.000143,2]
[396211709,1764810742647,-403579.1243666,0.00014368,2]
[396211710,1764810742668,-160.0,0.000144,2]
[396211711,1764810742690,-933.99486368,0.00014434,2]
[396211712,1764810742713,-300.0,0.00014508,2]
[396211713,1764810742735,-300.0,0.00014508,2]
[396211714,1764810742761,-300.0,0.00014508,2]
[396211715,1764810742783,-300.0,0.00014508,2]
[396211716,1764810742803,-300.0,0.00014508,2]
[396211717,1764810742824,-300.0,0.00014508,2]
[396211718,1764810742848,-300.0,0.00014508,2]
[396211719,1764810742870,-300.0,0.00014508,2]
[396211720,1764810742892,-300.0,0.00014508,2]
[396211721,1764810742915,-300.0,0.00014508,2]
[396211722,1764810742937,-300.0,0.00014508,2]
[396211723,1764810742958,-300.0,0.00014508,2]
[396211724,1764810742980,-300.0,0.00014508,2]
[396211725,1764810743003,-300.0,0.00014508,2]
[396211726,1764810743024,-300.0,0.00014508,2]
[396211727,1764810743045,-600.0,0.00014655,2]
[396211728,1764810743070,-150.0,0.000147,2]
[396211729,1764810743093,-281.89316803,0.00014845,2]
[396211730,1764810743116,-260.0,0.00014948,2]
[396211731,1764810743140,-195.649873,0.00015068,2]
[396211732,1764810743163,-500.0,0.0001515,2]
[396211733,1764810743187,-360.0,0.00015496,2]
[396211734,1764810743209,-150.0,0.000158,2]
[396211735,1764810743232,-460.0,0.00016044,2]
[396211736,1764810743257,-720.0,0.0001612,2]
[396211737,1764810743280,-204.0,0.00016204,2]
[396211738,1764810743303,-500.0,0.00016291,2]
[396211739,1764810743324,-500.0,0.00016575,2]
[396211740,1764810743347,-560.0,0.00016592,2]
[396211741,1764810743367,-500.0,0.00016845,2]
[396211742,1764810743388,-150.0,0.000169,2]
[396211743,1764810743406,-150.0,0.000169,2]
[396211744,1764810743427,-182.25282677,0.000169,2]
[396211745,1764810743447,-660.0,0.0001714,2]
[396211746,1764810743467,-399.08732633,0.00017266,2]
[396211747,1764810743486,-414.0,0.00017362,2]
[396211748,1764810743510,-500.0,0.00017442,2]
[396211749,1764810743532,-500.0,0.00017658,2]
[396211750,1764810743554,-760.0,0.00017688,2]
[396211751,1764810743579,-864.0,0.00017732,2]
[396211752,1764810743600,-7507.43292599,0.000178,2]
[396211753,1764810743619,-164.49349136,0.000179,2]
[396211754,1764810743639,-500.0,0.00017935,2]
[396211755,1764810743659,-151900.6522726,0.00018,2]
[396211756,1764810743680,-1000.0,0.00018,2]
[396211757,1764810743701,-29878.93071416,0.00018,2]
[396211758,1764810743720,-151.0,0.00018,2]
[396211759,1764810743742,-231.0,0.00018204,2]
[396211760,1764810743762,-860.0,0.00018236,2]
[396211761,1764810743783,-500.0,0.00018699,2]
[396211762,1764810743803,-960.0,0.00018784,2]
[396211763,1764810743822,-160.0,0.00018855,3]
[396211764,1764810743843,-160.0,0.00018913,4]
[396211765,1764810743864,-200.0,0.00018948,2]
[396211766,1764810743885,-504.38905811,0.00018985,3]
[396211767,1764810743906,-151.0,0.00019178,2]
[396211768,1764810743925,-151.0,0.00019178,2]
[396211769,1764810743945,-151.0,0.00019178,2]
[396211770,1764810743965,-168.40481,0.00019178,2]
[396211771,1764810743985,-168.40481,0.00019178,2]
[396211772,1764810744009,-168.40481,0.00019178,2]
[396211773,1764810744031,-168.40481,0.00019178,2]
[396211774,1764810744055,-5000.0,0.00019178,2]
[396211775,1764810744083,-5000.0,0.00019178,2]
[396211776,1764810744108,-153.0,0.00019178,2]
[396211777,1764810744135,-3770.91,0.000192,2]
[396211778,1764810744163,-3820.39,0.000192,2]
[396211779,1764810744190,-1060.0,0.00019332,2]
[396211780,1764810744215,-200.0,0.00019496,2]
[396211781,1764810744239,-12000.0,0.000196,3]
[396211782,1764810744267,-195.649873,0.00019635,2]
[396211783,1764810744289,-800.0,0.00019731,2]
[396211784,1764810744310,-800.0,0.00019765,2]
[396211785,1764810744331,-150.0,0.000198,3]
[396211786,1764810744353,-150.0,0.000198,3]
[396211787,1764810744373,-868.08004689,0.00019843,2]
[396211788,1764810744392,-1160.0,0.00019879,2]
[396211789,1764810744412,-151.0,0.0001988,2]
[396211790,1764810744432,-151.0,0.0001988,2]
[396211791,1764810744452,-168.40481,0.0001988,2]
[396211792,1764810744471,-168.40481,0.0001988,2]
[396211793,1764810744494,-168.40481,0.0001988,2]
[396211794,1764810744515,-168.40481,0.0001988,2]
[396211795,1764810744534,-800.0,0.00019927,2]
[396211796,1764810744553,-800.0,0.00019936,2]
[396211797,1764810744572,-800.0,0.00019945,2]
[396211798,1764810744591,-333.0,0.00019967,2]
[396211799,1764810744609,-166.0,0.00019967,2]
[396211800,1764810744627,-166.0,0.00019967,2]
[396211801,1764810744646,-333.0,0.00019967,2]
[396211802,1764810744664,-166.36412575,0.00019967,2]
[396211803,1764810744684,-333.0,0.00019967,2]
[396211804,1764810744703,-156.0,0.00019967,2]
[396211805,1764810744721,-156.0,0.00019967,2]
[396211806,1764810744740,-156.0,0.00019967,2]
[396211807,1764810744758,-156.0,0.00019967,2]
[396211808,1764810744778,-156.0,0.00019967,2]
[396211809,1764810744797,-156.0,0.00019967,2]
[396211810,1764810744815,-156.0,0.00019967,2]
[396211811,1764810744834,-156.0,0.00019967,2]
[396211812,1764810744852,-156.0,0.00019967,2]
[396211813,1764810744871,-156.0,0.00019967,2]
[396211814,1764810744891,-156.0,0.00019967,2]
[396211815,1764810744911,-156.0,0.00019967,2]
[396211816,1764810744931,-156.0,0.00019967,2]
[396211817,1764810744950,-164.22270792,0.00019967,2]
[396211818,1764810744968,-167.0,0.00019967,2]
[396211819,1764810744987,-167.0,0.00019967,2]
[396211820,1764810745009,-166.0,0.00019967,2]
[396211821,1764810745029,-162.19370157,0.00019967,2]
[396211822,1764810745055,-167.0,0.00019967,2]
[396211823,1764810745077,-167.0,0.00019967,2]
[396211824,1764810745099,-166.0,0.00019967,2]
[396211825,1764810745120,-166.0,0.00019967,2]
[396211826,1764810745141,-161.15591244,0.00019967,2]
[396211827,1764810745162,-333.0,0.00019967,2]
[396211828,1764810745182,-333.0,0.00019967,2]
[396211829,1764810745203,-333.0,0.00019967,2]
[396211830,1764810745224,-333.0,0.00019967,2]
[396211831,1764810745244,-333.0,0.00019967,2]
[396211832,1764810745264,-333.0,0.00019967,2]
[396211833,1764810745282,-333.0,0.00019967,2]
[396211834,1764810745302,-333.0,0.00019967,2]
[396211835,1764810745321,-333.0,0.00019967,2]
[396211836,1764810745341,-275.64156912,0.00019967,2]
[396211837,1764810745361,-794.3223688,0.0002,2]
[396211838,1764810745383,-397.1611844,0.0002,2]
[396211839,1764810745404,-397.1611844,0.0002,2]
[396211840,1764810745426,-397.1611844,0.0002,2]
[396211841,1764810745446,-397.1611844,0.0002,2]
[396211842,1764810745464,-397.1611844,0.0002,2]
[396211843,1764810745483,-397.1611844,0.0002,2]
[396211844,1764810745505,-204.3894033,0.0002,2]
[396211845,1764810745525,-168.20195118,0.0002,2]
[396211846,1764810745545,-166.66,0.0002,2]
[396211847,1764810745564,-886.0,0.0002,2]
[396211848,1764810745584,-5436.83,0.0002,2]
[396211849,1764810745603,-280.48613161,0.0002,2]
[396211850,1764810745623,-2377.49,0.0002,2]
[396211851,1764810745642,-1470.19884572,0.0002,2]
[396211852,1764810745665,-3000.0,0.0002,2]
[396211853,1764810745687,-500.0,0.0002,2]
[396211854,1764810745709,-500.0,0.0002,2]
[396211855,1764810745730,-333.0,0.0002,2]
[396211856,1764810745756,-1000.0,0.0002,2]
[396211857,1764810745776,-771.0,0.0002,2]
[396211858,1764810745796,-1136.99982233,0.0002,2]
[396211859,1764810745816,-1136.99982233,0.0002,2]
[396211860,1764810745836,-151.0,0.0002,2]
[396211861,1764810745856,-151.0,0.0002,2]
[396211862,1764810745875,-151.0,0.0002,2]
[396211863,1764810745895,-151.0,0.0002,2]
[396211864,1764810745915,-297.926364,0.0002,2]
[396211865,1764810745937,-168.40481,0.0002,2]
[396211866,1764810745957,-168.40481,0.0002,2]
[396211867,1764810745977,-168.40481,0.0002,2]
[396211868,1764810745999,-168.40481,0.0002,2]
[396211869,1764810746019,-168.40481,0.0002,2]
[396211870,1764810746039,-168.40481,0.0002,2]
[396211871,1764810746059,-168.40481,0.0002,2]
[396211872,1764810746083,-168.40481,0.0002,2]
[396211873,1764810746103,-168.40481,0.0002,2]
[396211874,1764810746124,-168.40481,0.0002,2]
[396211875,1764810746145,-168.40481,0.0002,2]
[396211876,1764810746165,-168.404804,0.0002,2]
[396211877,1764810746183,-3000.0,0.0002001,2]
[396211878,1764810746201,-3000.0,0.0002002,2]
[396211879,1764810746220,-3000.0,0.0002003,2]
[396211880,1764810746238,-3000.0,0.0002004,2]
[396211881,1764810746258,-200.0,0.00020044,2]
[396211882,1764810746276,-3000.0,0.0002005,2]
[396211883,1764810746294,-3000.0,0.0002006,2]
[396211884,1764810746313,-3000.0,0.0002007,2]
[396211885,1764810746331,-3000.0,0.0002008,2]
[396211886,1764810746350,-3000.0,0.0002009,2]
[396211887,1764810746368,-3000.0,0.000201,2]
[396211888,1764810746387,-3000.0,0.0002011,2]
[396211889,1764810746405,-3000.0,0.0002012,2]
[396211890,1764810746423,-238.23834104,0.0002013,2]
[396211891,1764810746441,-3000.0,0.0002013,2]
[396211892,1764810746460,-3000.0,0.0002014,2]
[396211893,1764810746478,-3000.0,0.0002015,2]
[396211894,1764810746499,-3000.0,0.0002016,2]
[396211895,1764810746518,-3000.0,0.0002017,2]
[396211896,1764810746536,-151.0,0.00020171,2]
[396211897,1764810746555,-3000.0,0.0002018,2]
[396211898,1764810746573,-500.0,0.00020183,2]
[396211899,1764810746592,-824.21743,0.00020187,2]
[396211900,1764810746610,-3000.0,0.0002019,2]
[396211901,1764810746631,-3000.0,0.000202,2]
[396211902,1764810746652,-258.0,0.00020204,2]
[396211903,1764810746671,-3000.0,0.0002021,2]
[396211904,1764810746692,-3000.0,0.0002022,2]
[396211905,1764810746712,-3000.0,0.0002023,2]
[396211906,1764810746733,-3000.0,0.0002024,2]
[396211907,1764810746753,-3000.0,0.0002025,2]
[396211908,1764810746996,-3000.0,0.0002026,2]
[396211909,1764810747016,-3000.0,0.0002027,2]
[396211910,1764810747036,-3000.0,0.0002028,2]
[396211911,1764810747058,-3000.0,0.0002029,2]
[396211912,1764810747084,-3000.0,0.000203,2]
[396211913,1764810747104,-3000.0,0.0002031,2]
[396211914,1764810747126,-3000.0,0.0002032,2]
[396211915,1764810747147,-3000.0,0.0002033,2]
[396211916,1764810747166,-3000.0,0.0002034,2]
[396211917,1764810747184,-3000.0,0.0002035,2]
[396211918,1764810747204,-3000.0,0.0002036,2]
[396211919,1764810747224,-414.0,0.00020362,2]
[396211920,1764810747246,-3000.0,0.0002037,2]
[396211921,1764810747267,-3000.0,0.0002038,2]
[396211922,1764810747287,-3000.0,0.0002039,2]
[396211923,1764810747308,-3000.0,0.000204,2]
[396211924,1764810747329,-3000.0,0.0002041,2]
[396211925,1764810747349,-3000.0,0.0002042,2]
[396211926,1764810747368,-1260.0,0.00020427,2]
[396211927,1764810747388,-3000.0,0.0002043,2]
[396211928,1764810747407,-3000.0,0.0002044,2]
[396211929,1764810747427,-3000.0,0.0002045,2]
[396211930,1764810747448,-3000.0,0.0002046,2]
[396211931,1764810747470,-4155.103286,0.0002047,2]
[396211932,1764810747490,-500.0,0.00020491,2]
[396211933,1764810747510,-7084.562696,0.00020548,2]
[396211934,1764810747533,-500.0,0.00020561,2]
[396211935,1764810747552,-151.0,0.00020585,2]
[396211936,1764810747572,-200.0,0.00020592,2]
[396211937,1764810747591,-1383.01801687,0.0002061,2]
[396211938,1764810747610,-3820.39,0.000208,2]
[396211939,1764810747630,-3770.91,0.000209,2]
[396211940,1764810747649,-255.24570559,0.000209,2]
[396211941,1764810747668,-397.1611844,0.00020959,2]
[396211942,1764810747687,-397.1611844,0.00020959,2]
[396211943,1764810747707,-397.1611844,0.00020959,2]
[396211944,1764810747729,-397.1611844,0.00020959,2]
[396211945,1764810747748,-397.1611844,0.00020959,2]
[396211946,1764810747768,-397.1611844,0.00020959,2]
[396211947,1764810747787,-397.1611844,0.00020959,2]
[396211948,1764810747806,-397.1611844,0.00020959,2]
[396211949,1764810747825,-397.1611844,0.00020959,2]
[396211950,1764810747844,-1360.0,0.00020975,2]
[396211951,1764810747864,-40459.90802375,0.00021,2]
[396211952,1764810747882,-5146.0,0.00021,2]
[396211953,1764810747901,-500.0,0.00021,2]
[396211954,1764810747922,-5436.83,0.00021,2]
[396211955,1764810747942,-276.05645757,0.00021,2]
[396211956,1764810747961,-50000.0,0.00021,2]
[396211957,1764810747980,-3000.0,0.00021,2]
[396211958,1764810748001,-151.0,0.00021,2]
[396211959,1764810748022,-3000.0,0.0002101,2]
[396211960,1764810748043,-3000.0,0.0002102,2]
[396211961,1764810748064,-3000.0,0.0002103,2]
[396211962,1764810748087,-3000.0,0.0002104,2]
[396211963,1764810748106,-3000.0,0.0002105,2]
[396211964,1764810748128,-3000.0,0.0002106,2]
[396211965,1764810748157,-3000.0,0.0002107,2]
[396211966,1764810748177,-3000.0,0.0002108,2]
[396211967,1764810748197,-3000.0,0.0002109,2]
[396211968,1764810748218,-3000.0,0.000211,2]
[396211969,1764810748238,-3000.0,0.0002111,2]
[396211970,1764810748259,-3000.0,0.0002112,2]
[396211971,1764810748279,-500.0,0.00021123,2]
[396211972,1764810748299,-3000.0,0.0002113,2]
[396211973,1764810748319,-200.0,0.0002114,2]
[396211974,1764810748340,-3000.0,0.0002114,2]
[396211975,1764810748361,-3000.0,0.0002115,2]
[396211976,1764810748381,-3000.0,0.0002116,2]
[396211977,1764810748402,-3000.0,0.0002117,2]
[396211978,1764810748422,-3000.0,0.0002118,2]
[396211979,1764810748443,-3000.0,0.0002119,2]
[396211980,1764810748462,-2377.49,0.000212,2]
[396211981,1764810748482,-3000.0,0.000212,2]
[396211982,1764810748504,-3000.0,0.0002121,2]
[396211983,1764810748523,-3000.0,0.0002122,2]
[396211984,1764810748543,-3000.0,0.0002123,2]
[396211985,1764810748562,-3000.0,0.0002124,2]
[396211986,1764810748582,-3000.0,0.0002125,2]
[396211987,1764810748602,-3000.0,0.0002126,2]
[396211988,1764810748623,-3000.0,0.0002127,2]
[396211989,1764810748643,-3000.0,0.0002128,2]
[396211990,1764810748662,-3000.0,0.0002129,2]
[396211991,1764810748681,-3000.0,0.000213,2]
[396211992,1764810748700,-3000.0,0.0002131,2]
[396211993,1764810748720,-3000.0,0.0002132,2]
[396211994,1764810748738,-3000.0,0.0002133,2]
[396211995,1764810748759,-3000.0,0.0002134,2]
[396211996,1764810748778,-3000.0,0.0002135,2]
[396211997,1764810748796,-294.13860888,0.00021356,2]
[396211998,1764810748816,-3000.0,0.0002136,2]
[396211999,1764810748835,-3000.0,0.0002137,2]
[396212000,1764810748854,-3000.0,0.0002138,2]
[396212001,1764810748876,-3000.0,0.0002139,2]
[396212002,1764810748897,-399.08732633,0.000214,3]
[396212003,1764810748917,-3000.0,0.000214,2]
[396212004,1764810748939,-800.0,0.00021402,2]
[396212005,1764810748958,-3000.0,0.0002141,2]
[396212006,1764810748977,-3000.0,0.0002142,2]
[396212007,1764810748996,-3000.0,0.0002143,2]
[396212008,1764810749016,-3062.443946,0.0002144,2]
[396212009,1764810749039,-2000.44654577,0.000215,2]
[396212010,1764810749060,-1035.03746765,0.000215,2]
[396212011,1764810749084,-12803.3647174,0.000215,2]
[396212012,1764810749107,-250.0,0.000215,2]
[396212013,1764810749127,-250.0,0.000215,2]
[396212014,1764810749148,-250.0,0.000215,2]
[396212015,1764810749171,-250.0,0.000215,2]
[396212016,1764810749191,-250.0,0.000215,2]
[396212017,1764810749213,-192.6,0.000215,2]
[396212018,1764810749234,-1460.0,0.00021523,2]
[396212019,1764810749255,-12000.0,0.000216,3]
[396212020,1764810749275,-200.0,0.00021688,2]
[396212021,1764810749296,-937.71254833,0.00021705,2]
[396212022,1764810749315,-5000.0,0.00021747,2]
[396212023,1764810749335,-182.25282677,0.00021818,2]
[396212024,1764810749355,-800.0,0.00021894,2]
[396212025,1764810749377,-800.0,0.00021896,2]
[396212026,1764810749398,-813.69,0.00021917,2]
[396212027,1764810749419,-813.69,0.00021917,2]
[396212028,1764810749439,-813.69,0.00021917,2]
[396212029,1764810749512,-813.69,0.00021917,2]
[396212030,1764810749532,-813.69,0.00021917,2]
[396212031,1764810749551,-813.69,0.00021917,2]
[396212032,1764810749570,-813.69,0.00021917,2]
[396212033,1764810749590,-813.69,0.00021917,2]
[396212034,1764810749619,-813.69,0.00021917,2]
[396212035,1764810749640,-813.69,0.00021917,2]
[396212036,1764810749665,-813.69,0.00021917,2]
[396212037,1764810749684,-813.69,0.00021917,2]
[396212038,1764810749703,-813.69,0.00021917,2]
[396212039,1764810749722,-813.69,0.00021917,2]
[396212040,1764810749743,-813.69,0.00021917,2]
[396212041,1764810749763,-813.69,0.00021917,2]
[396212042,1764810749782,-813.69,0.00021917,2]
[396212043,1764810749802,-813.69,0.00021917,2]
[396212044,1764810749822,-813.69,0.00021917,2]
[396212045,1764810749843,-813.69,0.00021917,2]
[396212046,1764810749862,-813.69,0.00021917,2]
[396212047,1764810749881,-813.69,0.00021917,2]
[396212048,1764810749900,-813.69,0.00021917,2]
[396212049,1764810749919,-813.81527173,0.00021917,2]
[396212050,1764810749938,-569.733501,0.00021918,2]
[396212051,1764810749959,-569.733501,0.00021918,2]
[396212052,1764810749979,-569.733501,0.00021918,2]
[396212053,1764810750000,-569.733501,0.00021918,2]
[396212054,1764810750021,-569.733501,0.00021918,2]
[396212055,1764810750041,-569.733501,0.00021918,2]
[396212056,1764810750060,-569.733501,0.00021918,2]
[396212057,1764810750083,-569.733501,0.00021918,2]
[396212058,1764810750103,-569.733501,0.00021918,2]
[396212059,1764810750123,-569.733501,0.00021918,2]
[396212060,1764810750143,-569.733501,0.00021918,2]
[396212061,1764810750163,-569.733501,0.00021918,2]
[396212062,1764810750184,-569.733501,0.00021918,2]
[396212063,1764810750205,-569.733501,0.00021918,2]
[396212064,1764810750224,-569.733501,0.00021918,2]
[396212065,1764810750243,-569.733501,0.00021918,2]
[396212066,1764810750263,-569.733501,0.00021918,2]
[396212067,1764810750283,-569.733501,0.00021918,2]
[396212068,1764810750303,-569.733501,0.00021918,2]
[396212069,1764810750323,-569.733505,0.00021918,2]
[396212070,1764810750343,-151.0,0.00021918,2]
[396212071,1764810750363,-151.0,0.00021918,2]
[396212072,1764810750384,-151.0,0.00021918,2]